bitfinex/quotes_ETHUSD_20250925
["timestamp","ask_amount","ask_price","bid_price","bid_amount"]
[1758781584820,7.76625953,4018.4,4018.3,0.002]
[1758781585044,10.25481218,4018.4,4018.3,0.002]
[1758781585642,10.49021218,4018.4,4018.3,0.002]
[1758781586150,10.25481218,4018.4,4018.3,0.002]
[1758781586367,7.76625953,4018.4,4018.3,0.002]
[1758781586564,10.25481218,4018.4,4018.3,0.002]
[1758781586733,11.72531218,4018.4,4018.3,0.002]
[1758781587132,7.34931218,4018.4,4018.3,0.002]
[1758781587328,13.79731218,4018.4,4018.3,0.002]
[1758781587544,3.39025953,4018.4,4018.3,0.002]
[1758781587756,7.57425953,4018.4,4018.3,0.4709]
[1758781587958,10.06281218,4018.4,4018.3,0.002]
[1758781588972,11.09021218,4018.4,4018.3,0.002]
[1758781590568,10.69995265,4018.4,4018.3,0.002]
[1758781590926,10.46455265,4018.4,4018.3,0.002]
[1758781591121,10.65355265,4018.4,4018.3,0.002]
[1758781591352,12.72755265,4018.4,4018.3,0.002]
[1758781591730,12.96295265,4018.4,4018.3,0.002]
[1758781591931,2.48886234,4017.9,4017.1,0.02]
[1758781592132,2.48991584,4016.2,4015.9,0.4689]
[1758781592357,2.48991584,4016.2,4015.5,0.4689]
[1758781592358,9.86191584,4016.2,4015.5,0.4689]
[1758781592757,9.99022137,4016.2,4015.5,0.4689]
[1758781592970,10.78222137,4016.2,4015.0,0.4689]
[1758781593172,10.78222137,4016.2,4014.5,2.074]
[1758781593173,11.46072137,4016.2,4014.5,2.074]
[1758781593383,11.46072137,4016.2,4014.8,0.4689]
[1758781593672,11.46072137,4016.2,4016.1,1e-08]
[1758781593872,11.33241584,4016.2,4016.1,1e-08]
[1758781595180,7.35093333,4016.2,4016.1,1e-08]
[1758781595383,13.79793333,4016.2,4016.1,1e-08]
[1758781596254,13.35483333,4016.2,4016.1,0.00200001]
[1758781596662,13.92439752,4016.2,4016.1,0.00200001]
[1758781597656,13.24589752,4016.2,4016.1,0.00200001]
[1758781598172,13.48129752,4016.2,4016.1,0.00200001]
[1758781598377,7.03429752,4016.2,4016.1,0.00200001]
[1758781598688,13.24589752,4016.2,4016.1,0.00200001]
[1758781599258,6.79889752,4016.2,4016.1,0.00200001]
[1758781599458,13.24489752,4016.2,4016.1,0.00200001]
[1758781600161,6.79889752,4016.2,4016.1,0.00200001]
[1758781600356,5.59198168,4016.2,4016.1,0.00200001]
[1758781600557,2.48978602,4016.5,4016.1,0.52650001]
[1758781600781,4.371,4016.4,4016.2,0.5224]
[1758781600981,3.0,4016.3,4016.2,0.5224]
[1758781601286,3.0,4016.3,4016.1,0.00200001]
[1758781601495,3.0,4016.4,4016.2,0.0556]
[1758781601789,4.371,4016.3,4016.2,0.0556]
[1758781602389,2.4896088,4016.7,4016.2,0.5224]
[1758781602596,4.371,4016.6,4016.3,0.0556]
[1758781603087,3.0,4016.4,4016.1,0.00200001]
[1758781603287,3.0,4016.4,4016.1,2.49195223]
[1758781603509,4.37,4016.4,4016.1,2.49195223]
[1758781603697,4.76041242,4016.4,4016.2,0.5224]
[1758781603898,0.39041242,4016.4,4016.2,1.07284458]
[1758781604086,0.39041242,4016.4,4016.1,0.02689978]
[1758781604087,0.39041242,4016.4,4016.3,3.01225384]
[1758781604392,0.1258984,4017.9,4017.2,2.48923689]
[1758781604572,0.3903599,4017.9,4017.3,0.54729234]
[1758781604757,0.3903599,4017.9,4017.4,0.0556]
[1758781604964,4.7603599,4017.9,4017.5,0.0248911]
[1758781605171,4.7603599,4017.9,4017.6,0.5224]
[1758781605375,0.3903599,4017.9,4017.7,0.5224]
[1758781605571,0.3903599,4017.9,4017.8,3.03621352]
[1758781606183,0.3903599,4017.9,4017.8,0.5224]
[1758781606495,0.3903599,4017.9,4016.7,0.5224]
[1758781606496,2.48916768,4017.5,4016.7,0.5224]
[1758781606668,4.369,4017.4,4016.7,0.5224]
[1758781607192,5.48897155,4017.8,4016.7,0.5224]
[1758781607193,4.369,4017.3,4017.1,2.48932078]
[1758781607405,4.369,4017.3,4016.9,2.48948193]
[1758781607406,4.369,4017.4,4017.0,2.51430269]
[1758781607595,4.369,4017.4,4017.1,0.5224]
[1758781608375,4.369,4017.4,4015.6,0.002]
[1758781608376,2.48942513,4017.0,4015.6,0.002]
[1758781608573,4.369,4016.9,4016.0,0.0556]
[1758781608786,2.48960794,4016.7,4016.0,0.0556]
[1758781608986,4.368,4016.6,4015.6,2.1326]
[1758781609204,2.48990857,4016.3,4015.6,0.002]
[1758781609479,4.368,4016.2,4015.6,0.002]
[1758781610218,6.85791584,4016.2,4015.6,0.002]
[1758781610402,7.24834575,4016.2,4015.6,0.002]
[1758781610711,6.85791584,4016.2,4015.6,0.002]
[1758781611035,10.52971584,4016.2,4015.6,0.002]
[1758781611893,11.32171584,4016.2,4015.6,0.002]
[1758781612914,11.32071584,4016.2,4015.6,0.002]
[1758781613085,13.39571584,4016.2,4015.6,0.002]
[1758781613484,13.78625075,4016.2,4015.6,0.002]
[1758781614801,3.28222586,4015.7,4015.6,1e-08]
[1758781615132,42.78194796,4015.7,4015.6,1e-08]
[1758781615333,43.45374796,4015.7,4015.6,1e-08]
[1758781615631,43.84433356,4015.7,4015.6,1e-08]
[1758781618614,2.49115639,4014.2,4014.1,0.02]
[1758781618840,6.85715639,4014.2,4014.1,0.02]
[1758781619437,0.39063337,4014.2,4014.1,0.02]
[1758781619622,4.75663337,4014.2,4014.1,0.5424]
[1758781619803,30.2932221,4015.8,4014.1,0.5424]
[1758781620005,6.442,4015.7,4014.2,0.0556]
[1758781620205,2.49035578,4015.5,4014.7,2.49080186]
[1758781620436,6.442,4015.7,4014.7,2.49080186]
[1758781620437,5.49048574,4015.3,4014.8,0.4668]
[1758781620636,4.366,4015.2,4014.8,0.4668]
[1758781620803,4.366,4015.2,4014.9,0.4668]
[1758781621139,3.12534621,4015.7,4014.9,0.4668]
[1758781621436,2.49058364,4015.2,4014.9,0.4668]
[1758781621607,4.366,4015.1,4014.6,2.49089857]
[1758781621802,4.366,4015.0,4014.7,0.5126]
[1758781622003,4.366,4015.0,4014.8,0.5126]
[1758781622237,4.366,4015.0,4014.9,0.457]
[1758781622639,2.076,4015.5,4014.9,0.457]
[1758781622640,3.0,4015.7,4014.9,0.457]
[1758781622833,0.39054145,4015.2,4014.9,0.457]
[1758781623140,4.366,4015.1,4014.9,0.457]
[1758781623508,0.39054145,4015.2,4015.0,0.0249066]
[1758781623707,0.12378307,4016.7,4015.1,2.49059799]
[1758781623944,0.02,4016.9,4015.9,2.49010184]
[1758781623945,0.39049782,4016.0,4015.9,2.49010184]
[1758781624115,0.39049782,4016.0,4015.9,3.00270184]
[1758781624568,0.39049782,4016.0,4015.9,0.457]
[1758781624715,4.75549782,4016.0,4015.5,0.457]
[1758781625036,4.75549782,4016.0,4014.9,0.457]
[1758781625037,2.49034183,4015.6,4014.9,0.457]
[1758781625344,6.85536399,4015.5,4014.6,0.0556]
[1758781625542,6.85541974,4015.4,4014.6,2.54648923]
[1758781625916,6.85541974,4015.4,4014.7,2.49083732]
[1758781626143,0.39052168,4015.5,4014.8,0.53750784]
[1758781626344,0.39052168,4015.5,4015.4,2.49041191]
[1758781626561,0.371,4016.0,4015.8,2.49012413]
[1758781626861,0.39046017,4016.1,4016.0,2.49003984]
[1758781627018,0.39046017,4016.1,4016.0,0.5126]
[1758781627213,0.39046017,4016.1,4015.5,0.457]
[1758781627413,0.39046017,4016.1,4015.8,2.49012322]
[1758781627642,0.39046017,4016.1,4015.6,0.02490287]
[1758781627948,0.39046017,4016.1,4015.5,2.49030314]
[1758781628150,0.39046017,4016.1,4015.6,2.49027558]
[1758781628446,0.39046017,4016.1,4014.8,2.49074288]
[1758781628447,0.39046017,4016.1,4015.9,2.49005258]
[1758781628634,0.39046017,4016.1,4015.5,0.457]
[1758781629017,0.39046017,4016.1,4015.5,2.9473036]
[1758781629212,0.39046017,4016.1,4015.5,0.457]
[1758781629445,0.39046017,4016.1,4015.4,2.54595892]
[1758781629614,4.75446017,4016.1,4015.8,2.49016057]
[1758781629812,0.39046017,4016.1,4016.0,2.49003984]
[1758781630014,0.39046017,4016.1,4016.0,0.457]
[1758781630350,0.39046017,4016.1,4015.7,0.0556]
[1758781630351,0.39046017,4016.1,4015.7,2.54577118]
[1758781630520,0.39046017,4016.1,4015.0,2.49065601]
[1758781630521,2.4896132,4016.7,4015.8,0.457]
[1758781630721,0.02,4016.9,4015.9,0.02490101]
[1758781630923,4.383,4016.9,4016.2,2.48987111]
[1758781631221,4.383,4016.9,4016.0,0.5203]
[1758781631222,3.0,4016.8,4016.0,2.49000557]
[1758781631434,3.0,4016.8,4015.6,0.0556]
[1758781631435,3.0,4016.8,4016.1,2.48995992]
[1758781632054,3.0,4016.8,4016.4,2.48978347]
[1758781632249,0.02,4016.9,4016.7,2.48954862]
[1758781632437,0.02,4016.9,4016.8,2.48954391]
[1758781632840,0.02,4016.9,4016.8,3.5077636]
[1758781633151,0.02,4016.9,4016.8,3.53265903]
[1758781633454,0.02,4016.9,4016.8,3.5077636]
[1758781634533,0.02,4016.9,4016.8,3.53265903]
[1758781634937,0.02,4016.9,4016.8,3.5077636]
[1758781635240,0.02,4016.9,4016.8,7.8697636]
[1758781635560,0.02,4016.9,4016.8,9.9447636]
[1758781637047,0.02,4016.9,4016.8,0.49791969]
[1758781637361,0.02,4016.9,4016.4,2.48977808]
[1758781637362,0.02,4016.9,4016.4,4.361]
[1758781637561,0.02,4016.9,4016.8,2.48954391]
[1758781638061,0.41032423,4016.9,4016.8,2.51443934]
[1758781638261,0.41032423,4016.9,4016.6,2.48964679]
[1758781638573,0.2288,4016.8,4016.4,4.361]
[1758781638734,3.18645023,4017.2,4016.4,6.85077718]
[1758781639358,0.6971,4017.2,4016.4,6.85077718]
[1758781639565,0.6971,4017.2,4016.5,2.48972986]
[1758781639760,0.6971,4017.2,4016.4,4.361]
[1758781639961,2.48936282,4017.1,4016.4,4.361]
[1758781640165,0.2288,4017.1,4016.4,6.85077546]
[1758781640366,0.2288,4017.1,4016.5,2.48970813]
[1758781641633,2.48942155,4017.0,4015.9,0.4647]
[1758781641960,2.48959256,4016.8,4016.0,2.48998024]
[1758781642163,2.48967016,4016.6,4015.9,4.359]
[1758781642330,2.48966854,4016.6,4015.9,4.359]
[1758781642538,2.48973652,4016.5,4015.9,4.359]
[1758781642851,6.434,4017.1,4015.9,4.359]
[1758781642852,0.2288,4017.2,4015.9,4.359]
[1758781643050,7.359,4017.1,4016.2,2.48986748]
[1758781643241,7.8273,4017.1,4016.2,2.48986748]
[1758781643443,7.8273,4017.1,4016.3,2.48984918]
[1758781643644,4.359,4017.0,4016.3,2.48984918]
[1758781643864,4.359,4017.0,4016.2,2.48990497]
[1758781644069,4.359,4017.0,4016.4,2.48974825]
[1758781644268,4.359,4017.0,4016.5,2.48972927]
[1758781644565,4.8273,4017.0,4016.4,2.48977897]
[1758781644770,37.57025412,4016.9,4015.3,0.8198]
[1758781644976,3.18670134,4016.8,4015.7,4.359]
[1758781645181,2.48972613,4016.6,4015.9,2.49008775]
[1758781645351,0.6971,4016.7,4015.7,6.84918536]
[1758781645547,3.18672138,4016.7,4015.9,2.49008766]
[1758781645753,2.48967402,4016.6,4015.8,0.68491854]
[1758781646073,2.71847402,4016.6,4015.9,2.49008801]
[1758781646271,2.71847402,4016.6,4016.0,2.49003918]
[1758781646476,40.45011642,4016.9,4015.2,0.2311]
[1758781646477,37.57025412,4016.1,4015.2,0.2311]
[1758781646656,37.57025412,4016.1,4015.1,0.02]
[1758781646983,2.49034424,4015.6,4015.1,0.02]
[1758781647181,2.49035218,4015.5,4015.1,0.02]
[1758781647385,2.49041364,4015.4,4015.1,0.02]
[1758781647551,0.6971,4015.4,4015.1,0.02]
[1758781647751,2.49053596,4015.2,4015.1,0.02]
[1758781648262,3.18763596,4015.2,4015.1,0.02]
[1758781648465,3.57816379,4015.2,4015.1,0.02]
[1758781649496,1.08762783,4015.2,4015.1,0.02]
[1758781649676,0.39052783,4015.2,4015.1,0.022]
[1758781650696,0.6971,4015.9,4015.1,0.022]
[1758781650877,37.79905412,4015.7,4015.1,0.022]
[1758781651075,2.49036525,4015.5,4015.1,0.022]
[1758781651256,2.49053596,4015.2,4015.1,0.022]
[1758781651590,3.0,4015.3,4015.1,0.022]
[1758781651791,0.6971,4015.2,4015.1,0.022]
[1758781652196,3.24333596,4015.2,4015.1,0.022]
[1758781652403,0.7528,4015.2,4015.1,0.022]
[1758781652706,3.24333596,4015.2,4015.1,0.022]
[1758781653268,0.7528,4015.2,4015.1,0.022]
[1758781653584,1.14332625,4015.2,4015.1,0.022]
[1758781654518,3.63386221,4015.2,4015.1,0.022]
[1758781654815,7.42586221,4015.2,4015.1,0.022]
[1758781656706,7.42586221,4015.2,4014.6,0.002]
[1758781656907,43.85310026,4014.7,4014.6,0.002]
[1758781657083,50.40533474,4014.7,4014.6,0.002]
[1758781657264,51.10243474,4014.7,4014.6,0.002]
[1758781657464,51.49309247,4014.7,4014.6,0.002]
[1758781657673,49.0047369,4014.7,4014.6,0.002]
[1758781658499,42.5727369,4014.7,4014.6,0.002]
[1758781658712,0.39065773,4014.7,4014.6,2.49290818]
[1758781659264,0.39065773,4014.7,4014.6,3.71021207]
[1758781659598,0.39065773,4014.7,4014.6,1.21930389]
[1758781659780,0.39065773,4014.7,4014.6,0.6978]
[1758781660005,0.0557,4015.2,4014.6,0.002]
[1758781660006,2.6107,4015.2,4014.6,0.002]
[1758781660595,37.57025412,4015.0,4014.6,0.002]
[1758781660932,2.49084614,4014.7,4014.6,0.002]
[1758781662724,2.4914764,4013.7,4013.3,0.227]
[1758781663103,3.18568179,4014.5,4013.1,0.02]
[1758781663104,3.0,4014.2,4013.4,0.69551652]
[1758781663313,2.49132142,4014.0,4013.4,0.25191652]
[1758781663597,2.49143239,4013.8,4013.4,0.02491652]
[1758781663803,2.49143239,4013.8,4013.2,0.4436]
[1758781664023,2.49148529,4013.7,4013.1,0.247]
[1758781664350,0.02491715,4013.6,4013.1,0.02]
[1758781664499,42.31690192,4013.9,4013.1,0.02]
[1758781664695,0.3906478,4013.9,4013.1,0.02]
[1758781665016,0.3906478,4013.9,4013.2,0.6706]
[1758781665554,0.3906478,4013.9,4013.5,2.49153203]
[1758781665829,0.02491715,4013.8,4013.1,0.02]
[1758781666010,0.02491715,4013.8,4013.1,2.51180914]
[1758781666337,37.59517127,4013.8,4013.1,0.02]
[1758781666500,5.49143269,4013.8,4013.1,2.51183051]
[1758781666700,6.57669729,4013.9,4013.1,0.02]
[1758781666994,2.49151442,4013.7,4013.1,0.02]
[1758781667219,2.49140924,4013.8,4013.1,0.02]
[1758781667471,0.02491715,4013.8,4013.1,1.25804848]
[1758781667685,0.02491715,4013.8,4013.1,0.02]
[1758781667841,2.49156837,4013.6,4013.1,0.02]
[1758781668038,0.02491715,4013.5,4013.1,0.02]
[1758781668253,5.49147328,4013.7,4013.1,0.02]
[1758781668758,3.0,4013.7,4013.1,0.02]
[1758781668963,2.51646144,4013.6,4013.1,0.02]
[1758781669167,2.4915288,4013.6,4013.1,0.02]
[1758781669368,5.96047849,4013.7,4013.1,0.02]
[1758781669777,4.355,4013.6,4013.1,0.02]
[1758781669981,4.355,4013.6,4013.1,2.53675423]
[1758781670164,5.076,4014.5,4013.5,2.49158772]
[1758781670476,5.076,4014.5,4013.1,0.2961072]
[1758781670477,0.12254475,4015.5,4013.4,0.4436]
[1758781670679,42.39425412,4015.4,4013.6,0.227]
[1758781670990,4.355,4015.5,4014.5,2.49097023]
[1758781671274,2.49053551,4015.3,4014.2,6.431]
[1758781671473,0.02491715,4015.2,4014.2,7.32322028]
[1758781671681,2.49066155,4015.0,4014.2,7.32322028]
[1758781671858,0.02491715,4014.9,4014.2,7.32322028]
[1758781672058,2.4907945,4014.8,4014.2,0.89222028]
[1758781672282,37.57025412,4015.0,4014.1,0.02491218]
[1758781672472,37.57025412,4015.0,4014.2,0.02491156]
[1758781672776,37.57025412,4015.0,4014.2,2.49114524]
[1758781672987,37.57025412,4015.0,4014.1,2.51613063]
[1758781673289,4.355,4015.1,4014.4,2.49099576]
[1758781673596,4.354,4015.0,4014.4,2.49099576]
[1758781673746,3.0,4015.6,4014.7,2.4908321]
[1758781673944,0.469,4015.7,4014.5,2.74287867]
[1758781674158,4.37891715,4015.6,4014.5,0.227]
[1758781674482,6.86920628,4015.6,4014.7,2.49078779]
[1758781674687,0.39055705,4015.4,4014.8,2.49075627]
[1758781674981,0.39055705,4015.4,4015.3,2.49047393]
[1758781675186,0.39055705,4015.4,4015.3,2.71747393]
[1758781675369,0.39055705,4015.4,4015.3,0.227]
[1758781675559,0.39055705,4015.4,4015.3,2.49047393]
[1758781675950,0.02,4015.9,4015.6,2.49027115]
[1758781676149,0.39050825,4015.8,4015.2,2.49048247]
[1758781676350,0.39050825,4015.8,4014.9,2.49066227]
[1758781676585,0.39050825,4015.8,4015.4,2.49040466]
[1758781676765,0.39050825,4015.8,4014.9,0.57581326]
[1758781676766,0.39050825,4015.8,4015.2,2.49052229]
[1758781676976,0.39050825,4015.8,4013.1,2.51183872]
[1758781677276,0.39050825,4015.8,4014.3,2.49104601]
[1758781677277,5.49041484,4015.4,4014.3,2.49104601]
[1758781677496,4.60361715,4015.3,4014.1,0.135]
[1758781677666,2.49067145,4015.0,4014.3,2.49109089]
[1758781677846,0.02491715,4014.9,4014.3,2.49109089]
[1758781678053,0.25061715,4014.9,4013.9,0.227]
[1758781678282,0.25061715,4014.9,4013.7,0.644]
[1758781678583,7.09435371,4014.9,4014.1,2.49117327]
[1758781678788,2.49079293,4014.8,4014.1,2.49117327]
[1758781678963,0.02491715,4014.7,4014.0,2.49127488]
[1758781679162,0.02491715,4014.7,4014.1,2.49120649]
[1758781679379,0.02491715,4014.7,4014.2,0.227]
[1758781679554,0.39059576,4014.7,4013.8,0.227]
[1758781679748,0.39059576,4014.7,4014.3,2.49103449]
[1758781680099,4.37791715,4015.0,4014.3,2.49103449]
[1758781680384,0.02491715,4015.0,4014.4,2.49102496]
[1758781680557,0.02491715,4015.0,4014.3,2.49107716]
[1758781680756,2.49083912,4014.8,4014.0,2.49127159]
[1758781680951,0.02491715,4014.7,4013.9,2.83040107]
[1758781681154,0.2257,4015.6,4014.0,1.04295291]
[1758781681483,3.0,4015.4,4014.6,2.49088257]
[1758781681679,5.49041674,4015.4,4014.6,2.49088257]
[1758781681887,3.0,4015.4,4014.7,2.51570167]
[1758781682086,5.49045463,4015.4,4014.6,0.02490908]
[1758781682282,2.49048986,4015.3,4014.6,2.51579903]
[1758781682585,3.0,4015.2,4014.6,2.51580248]
[1758781682784,0.39056095,4015.3,4014.6,0.02490908]
[1758781682950,0.39056095,4015.3,4014.7,3.19042753]
[1758781683153,0.39056095,4015.3,4014.7,0.2397]
[1758781683351,0.39056095,4015.3,4014.4,2.076]
[1758781683581,0.39056095,4015.3,4014.4,2.78876]
[1758781683776,0.39056095,4015.3,4014.6,2.49084714]
[1758781683982,40.06091248,4015.1,4014.2,6.84309716]
[1758781684182,0.02491715,4015.0,4014.3,2.49109267]
[1758781684385,0.02491715,4015.0,4014.2,4.352]
[1758781684386,2.49074499,4014.9,4014.2,4.352]
[1758781684682,4.74256095,4015.3,4014.3,0.02491094]
[1758781684683,3.39056095,4015.3,4014.3,0.02491094]
[1758781684881,0.2373,4015.2,4014.2,4.352]
[1758781685084,37.57025412,4014.6,4013.4,0.2397]
[1758781685250,2.49111511,4014.3,4013.5,2.49153763]
[1758781685454,2.49111511,4014.3,4013.4,6.428]
[1758781685455,2.51607354,4014.2,4013.6,1.14112183]
[1758781685657,2.49129835,4014.0,4013.2,2.49173242]
[1758781685890,2.72859835,4014.0,4013.3,2.49170215]
[1758781686283,0.39066178,4013.9,4013.3,2.49170215]
[1758781687182,0.39066178,4013.9,4013.5,2.49153979]
[1758781687383,0.39066178,4013.9,4013.4,0.02491652]
[1758781687589,0.39066178,4013.9,4013.5,2.49158145]
[1758781687771,0.39066178,4013.9,4013.6,0.02491528]
[1758781688488,0.39066178,4013.9,4013.4,2.49164274]
[1758781688703,0.39066178,4013.9,4013.5,0.0249159]
[1758781689686,2.49150186,4013.7,4013.1,4.373]
[1758781690002,2.75363714,4013.8,4013.1,4.373]
[1758781690509,2.75363714,4013.8,4013.1,6.86483252]
[1758781690700,0.26221715,4013.8,4013.1,6.86483252]
[1758781691009,0.26221715,4013.8,4013.2,2.49176985]
[1758781691171,0.02491715,4013.8,4013.2,2.49177713]
[1758781691509,6.84221187,4014.2,4013.1,4.373]
[1758781691510,2.49153669,4013.6,4013.1,4.373]
[1758781692712,38.29417127,4013.5,4013.1,0.022]
[1758781692910,2.49177713,4013.2,4013.1,0.022]
[1758781693320,7.00769428,4013.2,4013.1,0.022]
[1758781693498,6.98277713,4013.2,4013.1,0.022]
[1758781693712,7.37355102,4013.2,4013.1,0.022]
[1758781694780,13.79955102,4013.2,4013.1,0.022]
[1758781695983,49.29380514,4013.2,4013.1,0.022]
[1758781696312,51.37080514,4013.2,4013.1,0.022]
[1758781696613,3.39077389,4013.2,4013.1,0.022]
[1758781696923,10.46645102,4013.2,4013.1,0.022]
[1758781697145,0.39077389,4013.2,4013.1,0.022]
[1758781697679,4.76569104,4013.2,4013.1,0.022]
[1758781698120,7.25746817,4013.2,4013.1,0.022]
[1758781698322,7.23255102,4013.2,4013.1,0.022]
[1758781698614,7.46545102,4013.2,4013.1,0.022]
[1758781698784,7.93155102,4013.2,4013.1,0.022]
[1758781699533,7.46545102,4013.2,4013.1,0.022]
[1758781699698,4.74077389,4013.2,4013.1,0.022]
[1758781699884,7.23255102,4013.2,4013.1,0.022]
[1758781700085,4.74077389,4013.2,4013.1,0.022]
[1758781700284,7.23255102,4013.2,4013.1,0.022]
[1758781700831,6.84177713,4013.2,4013.1,0.022]
[1758781701033,37.6672153,4013.2,4013.1,0.022]
[1758781701813,40.6672153,4013.2,4013.1,0.022]
[1758781702040,41.4592153,4013.2,4013.1,0.022]
[1758781703212,43.5362153,4013.2,4013.1,0.022]
[1758781703737,43.92700582,4013.2,4013.1,0.022]
[1758781705319,2.49239818,4012.2,4012.1,0.02]
[1758781705517,6.84139818,4012.2,4012.1,0.02]
[1758781706025,7.23226257,4012.2,4012.1,0.02]
[1758781706221,7.93126257,4012.2,4012.1,0.02]
[1758781706524,7.46516257,4012.2,4012.1,0.02]
[1758781706723,10.93126257,4012.2,4012.1,0.02]
[1758781710021,0.792,4012.8,4012.1,0.02]
[1758781710220,2.49239818,4012.2,4012.1,0.02]
[1758781710421,10.56531533,4012.2,4012.1,0.02]
[1758781710621,10.54039818,4012.2,4012.1,0.02]
[1758781711289,9.84139818,4012.2,4012.1,0.02]
[1758781712012,9.96548533,4012.2,4012.1,0.02]
[1758781712211,40.7909235,4012.2,4012.1,0.02]
[1758781713499,41.5829235,4012.2,4012.1,0.02]
[1758781714292,41.97381744,4012.2,4012.1,0.02]
[1758781714791,43.35081744,4012.2,4012.1,0.02]
[1758781715192,44.04981744,4012.2,4012.1,0.02]
[1758781716297,43.58471744,4012.2,4012.1,0.02]
[1758781716516,44.05081744,4012.2,4012.1,0.02]
[1758781717531,36.92581744,4012.2,4012.1,0.02]
[1758781717728,0.39089394,4012.2,4012.1,0.7141]
[1758781717909,4.348,4012.8,4012.1,3.2065603]
[1758781718225,0.39081816,4012.4,4012.2,0.6941]
[1758781718424,0.39081816,4012.4,4012.3,0.6941]
[1758781718642,0.39081816,4012.4,4012.1,0.02]
[1758781718836,4.73881816,4012.4,4012.3,0.2411]
[1758781719028,0.39081816,4012.4,4012.3,0.6941]
[1758781719322,0.39081816,4012.4,4012.3,0.2411]
[1758781719522,0.39081816,4012.4,4012.3,0.6941]
[1758781720315,0.39081816,4012.4,4012.3,0.2411]
[1758781720515,4.37291715,4012.5,4012.1,0.02]
[1758781720770,4.37291715,4012.5,4012.2,0.6784]
[1758781720771,4.348,4012.5,4012.2,0.6784]
[1758781721273,3.001,4013.3,4012.3,0.6784]
[1758781721478,0.001,4013.3,4012.3,0.70332336]
[1758781721621,0.001,4013.3,4012.6,2.49209716]
[1758781721622,4.347,4013.2,4012.6,2.49209716]
[1758781721969,4.347,4013.2,4012.7,0.70332087]
[1758781722149,4.347,4013.2,4012.7,2.51700785]
[1758781722353,0.001,4013.3,4012.7,2.51700785]
[1758781722354,0.001,4013.3,4012.8,0.6784]
[1758781722553,0.001,4013.3,4013.2,2.49177713]
[1758781722731,0.001,4013.3,4012.9,0.6784]
[1758781723062,0.001,4013.3,4013.1,2.49183207]
[1758781723261,0.001,4013.3,4013.2,2.49177713]
[1758781723418,0.001,4013.3,4013.0,3.17029872]
[1758781723620,0.39170885,4013.3,4012.7,0.2292]
[1758781724168,0.39170885,4013.3,4012.8,3.0]
[1758781724372,0.39170885,4013.3,4012.8,0.2292]
[1758781724534,0.39170885,4013.3,4012.7,2.49208762]
[1758781724535,0.39170885,4013.3,4012.9,0.70331963]
[1758781724734,0.39170885,4013.3,4013.2,2.49177713]
[1758781724938,0.39170885,4013.3,4013.2,0.6784]
[1758781725379,0.001,4013.3,4013.2,3.1950949]
[1758781725676,0.001,4013.3,4013.2,0.6784]
[1758781725821,0.001,4013.3,4013.2,3.17017713]
[1758781726223,0.001,4013.3,4013.2,3.1950949]
[1758781726656,0.001,4013.3,4013.2,3.76607606]
[1758781726855,0.001,4013.3,4013.2,3.74115829]
[1758781727029,0.001,4013.3,4013.2,7.65715829]
[1758781730572,0.001,4013.3,4013.2,14.07815829]
[1758781732347,0.001,4013.3,4013.2,2.72097713]
[1758781732553,0.001,4013.3,4013.2,7.06397713]
[1758781732751,0.001,4013.3,4013.2,7.51317713]
[1758781734459,0.001,4013.3,4013.2,11.30517713]
[1758781734974,0.001,4013.3,4013.2,6.17017713]
[1758781735202,0.001,4013.3,4013.2,13.45638406]
[1758781735556,0.001,4013.3,4013.2,11.37838406]
[1758781735753,0.001,4013.3,4013.2,13.45538406]
[1758781736148,0.001,4013.3,4013.2,6.58718406]
[1758781736406,0.001,4013.3,4013.2,13.45538406]
[1758781736962,0.001,4013.3,4013.2,11.37838406]
[1758781737195,0.001,4013.3,4013.2,13.45538406]
[1758781737974,0.001,4013.3,4013.2,10.69998406]
[1758781738292,0.001,4013.3,4013.2,2.49177713]
[1758781738602,0.001,4013.3,4013.2,6.83377713]
[1758781738779,0.39166513,4013.3,4013.2,6.83377713]
[1758781739454,0.62016513,4013.3,4012.4,0.2292]
[1758781739657,0.62016513,4013.3,4012.5,6.289]
[1758781739863,0.2295,4013.3,4013.1,2.49181979]
[1758781740085,0.2285,4013.2,4012.0,3.0]
[1758781740387,0.2285,4013.2,4011.1,2.51306437]
[1758781740388,0.694,4013.2,4012.9,2.49195541]
[1758781740576,0.694,4013.1,4012.9,2.49195541]
[1758781740781,0.4655,4013.1,4012.9,2.49195541]
[1758781740984,0.694,4013.0,4012.8,4.341]
[1758781741187,0.001,4013.3,4012.7,2.49208737]
[1758781741360,0.001,4013.3,4012.8,6.83302551]
[1758781741361,0.6907,4012.9,4012.8,6.83302551]
[1758781741562,0.001,4013.3,4012.8,2.49202551]
[1758781741784,0.6907,4013.2,4012.8,2.49202551]
[1758781741966,0.6907,4013.1,4012.8,2.49202551]
[1758781742180,0.2456,4013.0,4012.9,2.4919543]
[1758781742498,0.2456,4013.0,4012.8,2.49201414]
[1758781743085,0.2456,4013.0,4012.7,4.341]
[1758781743295,0.6907,4013.0,4012.6,2.49214423]
[1758781743493,0.6907,4013.0,4012.7,4.341]
[1758781743693,0.6907,4013.0,4012.7,6.8330861]
[1758781743932,0.6907,4013.0,4012.7,2.4920861]
[1758781744226,0.6907,4013.0,4012.8,4.34]
[1758781744421,0.001,4013.3,4012.8,4.36492025]
[1758781744733,0.6907,4013.2,4012.9,2.49194498]
[1758781744898,1.08141081,4013.2,4013.0,2.49188631]
[1758781745300,1.08141081,4013.2,4013.0,2.49185293]
[1758781745626,1.08141081,4013.2,4012.8,6.83200128]
[1758781745836,0.39071081,4013.2,4012.9,2.49196341]
[1758781746124,0.39071081,4013.2,4013.1,2.49183922]
[1758781747230,0.001,4013.3,4013.2,2.49177713]
[1758781747540,0.001,4013.3,4013.2,5.3095949]
[1758781747827,0.001,4013.3,4013.2,8.40867713]
[1758781748631,0.001,4013.3,4013.2,9.07667713]